lending/lending_fUSD_20250131
["ID","MTS","AMOUNT","RATE_DAILY","PERIOD"]
[351146739,1738354231699,-159.19,0.00016572,2]
[351146740,1738354231708,-200.0,0.00016593,2]
[351146741,1738354231717,-159.19,0.00016599,2]
[351146742,1738354231726,-159.19,0.00016627,2]
[351146743,1738354231735,-589.45,0.00016631,2]
[351146744,1738354231744,-159.19,0.00016655,2]
[351146745,1738354231753,-3602.21902,0.00016708,2]
[351146746,1738354231762,-431.95,0.00016813,2]
[351146747,1738354231771,-991.0,0.00017,2]
[351146748,1738354231780,-899.81,0.00017049,2]
[351146749,1738354231789,-151.05621073,0.00017108,2]
[351146750,1738354231799,-299.53,0.00017126,2]
[351146751,1738354231811,-176.58,0.00017198,2]
[351146752,1738354231819,-150.0,0.00017203,2]
[351146753,1738354231828,-1000.0,0.00017204,2]
[351146754,1738354231837,-235.64,0.00017204,2]
[351146755,1738354231845,-166.13,0.00017204,2]
[351146756,1738354231854,-7378.05,0.00017204,2]
[351146757,1738354231864,-150.31,0.00017208,2]
[351146758,1738354231874,-152.53,0.00017208,2]
[351146759,1738354231884,-150.51,0.00017208,2]
[351146760,1738354231893,-150.81,0.00017208,2]
[351146761,1738354231903,-151.51,0.00017208,2]
[351146762,1738354231912,-151.73,0.00017208,2]
[351146763,1738354231921,-152.41,0.00017208,2]
[351146764,1738354231930,-151.14,0.00017208,2]
[351146765,1738354231939,-151.46,0.00017208,2]
[351146766,1738354231948,-152.83,0.00017208,2]
[351146768,1738354231957,-151.23,0.00017208,2]
[351146770,1738354231966,-151.33,0.00017208,2]
[351146772,1738354231975,-152.66,0.00017208,2]
[351146774,1738354231984,-151.57,0.00017208,2]
[351146776,1738354231993,-150.56,0.00017208,2]
[351146778,1738354232003,-3908.0,0.00017229,2]
[351146780,1738354232012,-245.364,0.00017229,2]
[351146782,1738354232022,-1107.0,0.00017229,2]
[351146784,1738354232031,-152.05,0.00017313,2]
[351146786,1738354232041,-151.02,0.00017313,2]
[351146788,1738354232050,-150.8,0.00017313,2]
[351146790,1738354232060,-152.78,0.00017313,2]
[351146792,1738354232069,-151.01,0.00017313,2]
[351146793,1738354232080,-1499.84,0.00017342,2]
[351146795,1738354232092,-238.68,0.00017392,2]
[351146797,1738354232109,-157.03,0.00017423,30]
[351146799,1738354232120,-431.18147599,0.00017527,2]
[351146801,1738354232130,-230901.97472153,0.00017597,2]
[351146803,1738354232142,-1486.97959309,0.00017597,2]
[351146806,1738354232162,-6815.04735562,0.00017597,2]
[351146809,1738354232173,-1290.83554341,0.00017597,2]
[351146812,1738354232192,-26195.07817,0.00017597,2]
[351146815,1738354232211,-7893.45161813,0.00017597,2]
[351146817,1738354232222,-14992.54,0.00017597,2]
[351146819,1738354232233,-578.04366589,0.00017597,2]
[351146822,1738354232252,-844.73118774,0.00017597,2]
[351146824,1738354232264,-51890.40018809,0.00017597,2]
[351146826,1738354232275,-40046.04186056,0.00017597,2]
[351147269,1738354237457,-489.04999834,0.00017597,2]
[351147270,1738354237578,-68878.28139505,0.00017597,2]
[351147271,1738354237613,-1845.8539949,0.00017597,2]
[351147272,1738354237664,-1329.47819561,0.00017597,2]
[351147273,1738354237677,-431.37689251,0.00017597,2]
[351147274,1738354237689,-3119.945248,0.00017597,2]
[351147275,1738354237700,-822.57,0.00017597,2]
[351147276,1738354237712,-41583.44154975,0.00017597,2]
[351147277,1738354237723,-11363.19327183,0.00017597,2]
[351147278,1738354237734,-253.23298008,0.00017597,2]
[351147279,1738354237773,-29535.63621026,0.00017597,2]
[351147280,1738354237828,-161272.55856278,0.00017597,2]
[351147322,1738354241545,-66716.64999999,0.00017597,2]
[351147323,1738354241601,-151730.47811858,0.00017597,2]
[351147324,1738354241613,-4328.48894983,0.00017597,2]
[351147325,1738354241625,-307.10879947,0.00017597,2]
[351147326,1738354241636,-102499.9999999,0.00017597,2]
[351147327,1738354241658,-1534.109752,0.00017597,2]
[351147328,1738354241766,-506.68139195,0.00017597,2]
[351147329,1738354241777,-27429.51876419,0.00017597,2]
[351147330,1738354241787,-3211.21541089,0.00017597,2]
[351147331,1738354241796,-200.0,0.00017597,2]
[351147332,1738354241806,-2000.0,0.00017597,2]
[351147333,1738354241818,-200.0,0.00017597,2]
[351147335,1738354241827,-3000.0,0.00017597,2]
[351147336,1738354241836,-200.0,0.00017597,2]
[351147338,1738354241846,-385.0,0.00017621,2]
[351147339,1738354241855,-900.0,0.00017623,2]
[351147340,1738354241865,-900.0,0.00017623,2]
[351147341,1738354241874,-900.0,0.00017623,2]
[351147343,1738354241883,-900.0,0.00017623,2]
[351147344,1738354241892,-900.0,0.00017623,2]
[351147345,1738354241902,-363.50898292,0.00017623,2]
[351147346,1738354241913,-376.84671096,0.00017623,2]
[351147347,1738354241924,-159.64430612,0.00017623,2]
[351147348,1738354241933,-647.60568388,0.00017623,2]
[351147349,1738354241945,-252.39431612,0.00017623,2]
[351147350,1738354241954,-452.03368888,0.00017623,2]
[351147351,1738354241965,-447.96631112,0.00017623,2]
[351147352,1738354241975,-158.17368988,0.00017623,2]
[351147353,1738354241986,-632.2,0.00017623,2]
[351147357,1738354242467,-109.62631012,0.00017623,2]
[351147358,1738354242476,-900.0,0.00017623,2]
[351147359,1738354242486,-150.74,0.00017704,2]
[351147360,1738354242495,-220.807,0.00017771,2]
[351147361,1738354242504,-6046.2843969,0.00017771,2]
[351147362,1738354242528,-36.9866031,0.00017771,2]
[351147363,1738354242537,-541.59654371,0.00017773,2]
[351147364,1738354242548,-468.8786624,0.00017773,2]
[351147365,1738354242558,-459.4436244,0.00017773,2]
[351147366,1738354242569,-530.08116949,0.00017773,2]
[351147367,1738354242579,-48.26854651,0.00017773,2]
[351147368,1738354242590,-151.73145349,0.00017773,2]
[351147369,1738354242598,-275.68854651,0.00017798,2]
[351147370,1738354242609,-513.4034575,0.00017798,2]
[351147371,1738354242621,-567.93,0.00017798,2]
[351147372,1738354242632,-682.68,0.00017798,2]
[351147373,1738354242643,-602.72741978,0.00017798,2]
[351147374,1738354242654,-954.6,0.00017798,2]
[351147375,1738354242665,-764.72434,0.00017798,2]
[351147376,1738354242683,-774.03585973,0.00017798,2]
[351147377,1738354242699,-4008.49835588,0.00017798,2]
[351147378,1738354242716,-652.4628524,0.00017798,2]
[351147379,1738354242728,-2145.9063,0.00017799,2]
[351147380,1738354242737,-1000.0,0.000178,2]
[351147381,1738354242745,-159.87253306,0.00017863,2]
[351147382,1738354242755,-154.6359267,0.00017863,2]
[351147383,1738354242764,-159.29068791,0.00017863,2]
[351147384,1738354242773,-34847.87863361,0.00017897,7]
[351147385,1738354242784,-6891.33283645,0.00017897,7]
[351147386,1738354242795,-2554.5,0.00017897,7]
[351147387,1738354242806,-2516.16206871,0.00017897,7]
[351147388,1738354242817,-3190.12646123,0.00017897,7]
[351147389,1738354242826,-21195.51683877,0.00017897,7]
[351147390,1738354242837,-321.22,0.00017897,7]
[351147391,1738354242858,-512.45,0.00017897,7]
[351147475,1738354245676,-412.9332171,0.00017897,7]
[351147476,1738354245687,-4341.44480142,0.00017897,7]
[351147477,1738354245699,-1283.0,0.00017897,7]
[351147478,1738354245710,-1627.91096187,0.00017897,7]
[351147479,1738354245719,-2516.95110282,0.00017898,2]
[351147480,1738354245731,-2629.21098,0.00017898,2]
[351147481,1738354245742,-6225.99391718,0.00017898,2]
[351147482,1738354245752,-1426.7957,0.00017898,2]
[351147483,1738354245761,-250.6955,0.00017898,2]
[351147484,1738354245770,-150.69379886,0.00017898,2]
[351147485,1738354245779,-1906.49044066,0.00017899,2]
[351147486,1738354245788,-296746.39730067,0.00017899,2]
[351147487,1738354245799,-2098.7,0.00017899,2]
[351147488,1738354245810,-345.91974145,0.00017899,2]
[351147489,1738354245824,-3110.95752,0.00017899,2]
[351147490,1738354245837,-739.40998,0.00017899,2]
[351147491,1738354245847,-141570.5751822,0.00017899,2]
[351147492,1738354245859,-30362.27901284,0.00017899,2]
[351147494,1738354245877,-2244.2737815,0.00017899,2]
[351147496,1738354245888,-1097.67821731,0.00017899,2]
[351147682,1738355282749,9585.43066487,0.0001,2]
[351147683,1738355282774,10000.0,0.0001,2]
[351147684,1738355282797,10000.0,0.0001,2]
[351147685,1738355282817,10000.0,0.0001,2]
[351147686,1738355282847,13341.34,0.0001,2]
[351147688,1738355331341,7970.56758607,0.00013121,7]
[351147744,1738355403206,-300.0,9.999e-05,2]
[351147745,1738355403229,-9700.0,0.0001,2]
[351147750,1738355431698,-1207.20524815,0.0001,2]
[351147751,1738355431707,-150.0,0.00010999,2]
[351147752,1738355431716,-160.09476185,0.00011688,2]
[351147753,1738355431754,-494.21636138,0.00011688,2]
[351147754,1738355431871,-19222.94441335,0.00011688,2]
[351147755,1738355431881,-150.0,0.00012857,2]
[351147756,1738355431891,-550.0,0.00013,2]
[351147757,1738355431901,-150.0,0.0001321,2]
[351147758,1738355431910,-12833.64770402,0.0001321,2]
[351147759,1738355431920,-250.0,0.00013213,2]
[351147760,1738355431929,-857.46,0.00014732,2]
[351147761,1738355431938,-150.0,0.00014799,2]
[351147762,1738355431948,-600.0,0.00015,2]
[351147763,1738355431957,-502.0,0.00015808,2]
[351147764,1738355431966,-169.3645273,0.000159,2]
[351147765,1738355431975,-8839.41143807,0.000159,2]
[351147766,1738355431984,-1793.33,0.0001599,2]
[351147767,1738355431993,-150.0,0.00015999,2]
[351147768,1738355432002,-168.64023808,0.00015999,2]
[351147769,1738355432011,-246697.63228676,0.00016,2]
[351147770,1738355432023,-1785.82235,0.00016,2]
[351147771,1738355432042,-64094.58988147,0.00016,2]
[351147772,1738355432051,-115485.55178306,0.00016,2]
[351147773,1738355432060,-500.0,0.00016,2]
[351147774,1738355432070,-193.543207,0.00016105,2]
[351147775,1738355432079,-8839.41143802,0.0001622,2]
[351147776,1738355432088,-275.43,0.00016279,2]
[351147777,1738355432097,-1000.0,0.00016472,2]
[351147779,1738355432106,-284.0,0.0001649,2]
[351147781,1738355432115,-2944.11,0.00016518,2]
[351147783,1738355432124,-163.25,0.0001654,2]
[351147785,1738355432133,-8839.41143802,0.0001654,2]
[351147787,1738355432142,-411.96360339,0.00016548,2]
[351147789,1738355432152,-250.0,0.00016559,2]
[351147791,1738355432162,-1793.33,0.00016603,2]
[351147793,1738355432171,-5337.0,0.00016614,2]
[351147795,1738355432180,-157.03,0.00016658,30]
[351147797,1738355432190,-8839.41143802,0.0001686,2]
[351147799,1738355432199,-1458.14678374,0.000169,2]
[351147801,1738355432209,-193.543207,0.00016903,2]
[351147803,1738355432219,-371.2,0.00016904,2]
[351147805,1738355432229,-376.18,0.00016907,2]
[351147807,1738355432245,-370.32,0.00016911,2]
[351147809,1738355432256,-372.85,0.00016918,2]
[351147810,1738355432264,-377.01,0.00016928,2]
[351147812,1738355432284,-368.81,0.00016943,2]
[351147814,1738355432300,-373.37,0.00016965,2]
[351147817,1738355432309,-857.46,0.00016996,2]
[351147820,1738355432320,-377.95,0.00016999,2]
[351147822,1738355432335,-368.16,0.00016999,2]
[351147824,1738355432345,-376.47,0.00016999,2]
[351147826,1738355432355,-379.74,0.00016999,2]
[351147829,1738355432366,-371.18,0.00016999,2]
[351147831,1738355432376,-350.69,0.00017057,2]
[351147833,1738355432386,-1458.14678367,0.00017072,2]
[351147834,1738355432396,-173.33,0.00017083,2]
[351147836,1738355432405,-1000.0,0.000171,2]
[351147838,1738355432414,-150.0,0.00017178,2]
[351147840,1738355432424,-8839.41143802,0.0001718,2]
[351147842,1738355432432,-254.22,0.00017204,2]
[351147844,1738355432442,-1458.14678367,0.00017245,2]
[351147847,1738355432452,-438.21,0.0001726,2]
[351147849,1738355432464,-150.0,0.0001726,2]
[351147850,1738355432475,-1966.92,0.0001726,2]
[351147852,1738355432484,-340.59,0.0001726,2]
[351147854,1738355432493,-298.42,0.0001726,2]
[351147856,1738355432502,-774.29,0.000173,2]
[351147858,1738355432510,-774.29,0.000173,2]
[351147860,1738355432519,-774.29,0.000173,2]
[351147862,1738355432529,-773.37,0.000173,2]
[351147864,1738355432539,-150.0,0.00017306,2]
[351147866,1738355432548,-300.0,0.00017378,2]
[351147868,1738355432557,-1144.0,0.000174,2]
[351147870,1738355432566,-1458.14678367,0.00017417,2]
[351147872,1738355432575,-123640.52359713,0.00017483,2]
[351147874,1738355432585,-578.62094719,0.00017486,2]
[351147876,1738355432595,-123640.52359713,0.00017496,2]
[351147878,1738355432605,-150.28,0.00017499,2]
[351147880,1738355432614,-8839.41143802,0.000175,2]
[351147882,1738355432623,-779.986312,0.00017511,2]
[351147884,1738355432633,-779.986312,0.00017511,2]
[351147886,1738355432642,-42469.99474551,0.00017511,2]
[351148404,1738355437862,-10284.81484211,0.00017511,2]
[351148406,1738355437871,-578.62094719,0.00017513,2]
[351148408,1738355437881,-52754.80958762,0.00017524,2]
[351148410,1738355437891,-24695.90211065,0.00017539,2]
[351148412,1738355437902,-263.1033415,0.00017539,2]
[351148415,1738355437917,-1019.9,0.00017539,2]
[351148418,1738355437937,-20360.34,0.00017539,2]
[351148569,1738355439851,-374.5,0.00017027,2]
[351148570,1738355439860,-657.7700975,0.00017539,2]
[351148571,1738355440131,-1023.3,0.00017539,2]
[351148608,1738355442761,-286.5814299,0.00016791,2]
[351148609,1738355442873,-757.73562668,0.00016791,2]
[351148610,1738355442882,-1107.0,0.00017306,2]
[351148611,1738355442892,-245.95000585,0.00017499,2]
[351148612,1738355442901,-245.95000585,0.00017509,2]
[351148613,1738355442911,-9154.16436162,0.00017539,2]
[351148738,1738355445689,-245.95000585,0.00017479,2]
[351148739,1738355445699,-66466.04368586,0.00017539,2]
[351148740,1738355445708,-779.986312,0.00017544,2]
[351148742,1738355445717,-52754.80958762,0.00017546,2]
[351148743,1738355445726,-245.95000585,0.00017553,2]
[351148744,1738355445735,-578.62094719,0.00017556,2]
[351148745,1738355445745,-779.986312,0.00017568,2]
[351148746,1738355445754,-578.62094719,0.00017578,2]
[351148747,1738355445763,-17289.6349616,0.00017588,2]
[351148748,1738355445774,-449.9400025,0.00017588,2]
[351148749,1738355445790,-2157.64012,0.00017588,2]
[351148750,1738355445803,-750.18227,0.00017588,2]
[351148751,1738355445821,-752.92499938,0.00017588,2]
[351148752,1738355445855,-420.246,0.00017588,2]
[351148753,1738355445866,-5087.5,0.00017588,2]
[351148754,1738355445903,-35751.43800002,0.00017588,2]
[351148755,1738355445973,-60981.01724363,0.00017588,2]
[351148756,1738355445982,-1458.14678367,0.0001759,2]
[351148757,1738355445991,-39730.8359727,0.00017595,2]
[351149194,1738356275798,-396.46,0.00010137,2]
[351149263,1738356631822,-150.0,0.00012266,2]
[351149264,1738356631831,-150.0,0.00012266,2]
[351149266,1738356631840,-150.0,0.00012266,2]
[351149267,1738356631850,-193.543207,0.00013968,2]
[351149269,1738356631859,-300.0,0.00014067,2]
[351149271,1738356631868,-150.0,0.00014068,2]
[351149273,1738356631880,-844.69,0.00014298,2]
[351149275,1738356631893,-420.0,0.0001541,2]
[351149276,1738356631907,-1852.42,0.00016112,2]
[351149277,1738356631919,-150.0,0.00016164,2]
[351149278,1738356631930,-2751.0,0.00016185,2]
[351149279,1738356631940,-203.37,0.00016185,2]
[351149280,1738356631952,-720.34599,0.000162,2]
[351149281,1738356631964,-1000.0,0.00016265,2]
[351149282,1738356631975,-500.0,0.00016287,2]
[351149283,1738356631987,-303.46,0.00016303,3]
[351149284,1738356631999,-500.0,0.00016338,2]
[351149285,1738356632011,-314.98,0.00016359,2]
[351149286,1738356632023,-339.01,0.00016438,2]
[351149287,1738356632035,-200.0,0.00016478,2]
[351149288,1738356632046,-844.69,0.00016562,2]
[351149289,1738356632057,-454.56,0.00016594,2]
[351149290,1738356632067,-760.88,0.00016614,2]
[351149291,1738356632078,-9983.09,0.00016638,2]
[351149292,1738356632091,-157.03,0.00016658,30]
[351149293,1738356632103,-5000.0,0.00016684,4]
[351149294,1738356632115,-774.06,0.00016741,2]
[351149295,1738356632126,-1500.0,0.00016744,2]
[351149296,1738356632138,-23900.0,0.00016808,2]
[351149297,1738356632150,-150.0,0.00016813,2]
[351149298,1738356632162,-396.46,0.00016813,2]
[351149299,1738356632174,-568.77,0.00016819,2]
[351149300,1738356632187,-1215.12231987,0.000169,2]
[351149301,1738356632198,-1421.36,0.00016922,2]
[351149303,1738356632212,-2260.8223759,0.00016922,2]
[351149305,1738356632227,-919.8,0.00016922,2]
[351149310,1738356632261,-20147.13460417,0.00016922,2]
[351149312,1738356632274,-9942.46301993,0.00016922,2]
[351149314,1738356632285,-999.99,0.00016922,2]
[351149317,1738356632298,-576.46,0.00016922,2]
[351149319,1738356632311,-439.19,0.00017014,2]
[351149321,1738356632321,-439.19,0.00017014,2]
[351149323,1738356632332,-439.19,0.00017014,2]
[351149326,1738356632343,-774.29,0.00017014,2]
[351149328,1738356632355,-439.19,0.00017014,2]
[351149330,1738356632365,-774.29,0.00017014,2]
[351149332,1738356632376,-774.29,0.00017014,2]
[351149334,1738356632386,-439.19,0.00017014,2]
[351149336,1738356632399,-774.29,0.00017014,2]
[351149339,1738356632411,-774.29,0.00017014,2]
[351149341,1738356632421,-912.7,0.00017014,2]
[351149343,1738356632431,-1215.12231972,0.00017072,2]
[351149345,1738356632441,-5860.86466035,0.00017195,2]
[351149349,1738356632464,-510.5836622,0.00017195,2]
[351149353,1738356632499,-1093.55167745,0.00017195,2]
[351149355,1738356632509,-1215.12231972,0.00017245,2]
[351149357,1738356632519,-982.28,0.0001726,2]
[351149360,1738356632529,-174.59,0.00017356,2]
[351149362,1738356632543,-1215.12231972,0.00017417,2]
[351149364,1738356632553,-8683.68384579,0.0001742,2]
[351149366,1738356632564,-395.96963018,0.00017456,2]
[351149369,1738356632575,-3535.76457528,0.0001749,2]
[351149371,1738356632585,-2410.88578686,0.00017491,2]
[351149493,1738356637749,-501.01017255,0.00014067,2]
[351149494,1738356637763,-19789.88784401,0.00014067,2]
[351149495,1738356637774,-892.0,0.00017,2]
[351149496,1738356637785,-3763.0897408,0.00017491,2]
[351149497,1738356637796,-1042.50959679,0.00017503,2]
[351149498,1738356637868,-2070.68484382,0.00017503,2]
[351149499,1738356637919,-7463.19279211,0.00017503,2]
[351149500,1738356637983,-310.24010705,0.00017503,2]
[351149501,1738356637996,-4873.27876767,0.00017503,2]
[351149502,1738356638007,-2775.55858532,0.00017513,2]
[351149503,1738356638020,-433.49178807,0.00017513,2]
[351149512,1738356641610,-381.96,0.00016638,2]
[351149513,1738356641619,-3784.73080246,0.00017513,2]
[351149514,1738356641635,-981.3532956,0.00017513,2]
[351149515,1738356641644,-22.34354863,0.00017514,2]
[351149516,1738356641732,-177.65645137,0.00017514,2]
[351149517,1738356641741,-301.99260863,0.00017516,2]
[351149518,1738356641753,-3613.88830805,0.00017516,2]
[351149519,1738356641765,-1415.9277856,0.00017516,2]
[351149520,1738356641776,-3058.6223334,0.00017516,2]
[351149521,1738356641821,-1862.54424,0.00017516,2]
[351149530,1738356643093,-315.64584498,0.00017516,2]
[351149541,1738356646154,-4978.61832,0.00017516,2]
[351149542,1738356646165,-212.66666678,0.00017516,2]
[351149543,1738356646174,-4497.13566649,0.00017524,2]
[351149547,1738357036898,188.91,0.00010137,2]
[351149549,1738357366227,2000.0,0.0001,2]
[351149748,1738357832291,-550.0,0.00013,2]
[351149749,1738357832301,-348.97771118,0.00013,2]
[351149750,1738357832316,-718.78087629,0.00013,2]
[351149751,1738357832327,-1132.24141253,0.00013,2]
[351149752,1738357832337,-837.25,0.00013975,2]
[351149753,1738357832346,-150.0,0.00014212,2]
[351149754,1738357832355,-150.0,0.000143,2]
[351149755,1738357832364,-150.0,0.000143,2]
[351149756,1738357832375,-600.0,0.00015,2]
[351149757,1738357832384,-2604.53,0.00015564,2]
[351149758,1738357832393,-251.64,0.00015573,2]
[351149759,1738357832403,-353.38,0.00015775,2]
[351149761,1738357832413,-16071.68,0.00015779,2]
[351149763,1738357832422,-1500.0,0.00015792,2]
[351149765,1738357832431,-526.17,0.00015795,2]
[351149767,1738357832441,-250.0,0.00015796,2]
[351149769,1738357832450,-2080.68,0.00015804,2]
[351149771,1738357832459,-1000.0,0.00015967,2]
[351149773,1738357832469,-490.99,0.00015978,2]
[351149775,1738357832478,-500.0,0.00015979,2]
[351149777,1738357832487,-313.84,0.00015987,2]
[351149779,1738357832496,-150.0,0.00015994,2]
[351149781,1738357832506,-1031.5,0.00015994,2]
[351149783,1738357832515,-780.28,0.0001602,2]
[351149785,1738357832524,-29997.0,0.00016156,2]
[351149787,1738357832533,-837.25,0.00016239,2]
[351149789,1738357832543,-313.67,0.00016292,2]
[351149791,1738357832553,-372.5,0.00016293,2]
[351149793,1738357832561,-367.85,0.00016294,2]
[351149795,1738357832574,-373.73,0.00016295,2]
[351149797,1738357832585,-405.0,0.00016298,2]
[351149800,1738357832594,-374.88,0.00016298,2]
[351149803,1738357832603,-371.65,0.00016303,2]
[351149806,1738357832612,-373.16,0.00016313,2]
[351149810,1738357832621,-863.79,0.0001632,2]
[351149813,1738357832630,-380.26,0.0001632,2]
[351149816,1738357832639,-372.24,0.0001632,2]
[351149819,1738357832648,-373.1,0.0001632,2]
[351149821,1738357832659,-380.76,0.0001632,2]
[351149823,1738357832668,-373.63,0.0001632,2]
[351149825,1738357832677,-368.67,0.0001632,2]
[351149827,1738357832686,-268.31,0.00016322,2]
[351149829,1738357832695,-176.89,0.00016447,2]
[351149831,1738357832704,-200.0,0.00016474,2]
[351149833,1738357832713,-369.54,0.00016483,2]
[351149835,1738357832723,-375.02,0.00016488,2]
[351149837,1738357832732,-377.35,0.00016495,2]
[351149839,1738357832741,-371.21,0.00016507,2]
[351149841,1738357832751,-369.61,0.00016507,2]
[351149843,1738357832760,-373.16,0.00016507,2]
[351149845,1738357832769,-369.41,0.00016507,2]
[351149847,1738357832779,-353.38,0.00016564,2]
[351149849,1738357832788,-16051.37771394,0.0001661,2]
[351149851,1738357832797,-367.57,0.0001661,2]
[351149853,1738357832806,-380.59,0.00016624,2]
[351149855,1738357832816,-439.19,0.00016636,2]
[351149857,1738357832825,-774.29,0.00016636,2]
[351149859,1738357832834,-910.57,0.00016636,2]
[351149861,1738357832843,-370.0,0.00016647,2]
[351149863,1738357832852,-157.03,0.00016658,30]
[351149865,1738357832861,-372.11,0.00016686,2]
[351149867,1738357832871,-374.8,0.00016686,2]
[351149869,1738357832880,-376.12,0.00016686,2]
[351149871,1738357832889,-161.31,0.00016749,2]
[351149873,1738357832899,-368.72,0.00016769,2]
[351149875,1738357832908,-378.44,0.00016769,2]
[351149877,1738357832917,-161.31,0.00016777,2]
[351149879,1738357832927,-23740.216,0.000168,2]
[351149881,1738357832936,-161.31,0.00016805,2]
[351149883,1738357832945,-376.99,0.00016813,2]
[351149885,1738357832956,-371.96,0.00016822,2]
[351149886,1738357832965,-150.0,0.00016822,2]
[351149887,1738357832975,-379.06,0.00016822,2]
[351149888,1738357832984,-368.8,0.00016822,2]
[351149889,1738357832993,-380.92,0.00016822,2]
[351149890,1738357833002,-380.25,0.00016822,2]
[351149891,1738357833012,-381.04,0.00016822,2]
[351149892,1738357833021,-161.31,0.00016833,2]
[351149893,1738357833030,-166.4024191,0.00016841,2]
[351149894,1738357833040,-150.0,0.00016877,2]
[351149895,1738357833049,-438.33,0.00016877,2]
[351149896,1738357833059,-150.0,0.00016877,2]
[351149897,1738357833068,-408.79,0.00016877,2]
[351149898,1738357833079,-438.33,0.00016877,2]
[351149899,1738357833088,-438.33,0.00016877,2]
[351149901,1738357833097,-150.0,0.00016877,2]
[351149903,1738357833106,-438.33,0.00016877,2]
[351149905,1738357833116,-298.42,0.00016877,2]
[351149907,1738357833126,-298.42,0.00016877,2]
[351149908,1738357833135,-150.0,0.00016877,2]
[351149911,1738357833144,-438.33,0.00016877,2]
[351149913,1738357833156,-150.0,0.00016877,2]
[351149914,1738357833166,-298.42,0.00016877,2]
[351149916,1738357833175,-298.42,0.00016877,2]
[351149918,1738357833185,-150.0,0.00016877,2]
[351149920,1738357833194,-150.0,0.00016877,2]
[351149922,1738357833204,-150.0,0.00016877,2]
[351149924,1738357833213,-150.0,0.00016877,2]
[351149926,1738357833222,-150.0,0.00016877,2]
[351149929,1738357833233,-304.94,0.000169,2]
[351149931,1738357833243,-150.0,0.000169,2]
[351149933,1738357833252,-500.0,0.000169,2]
[351149935,1738357833262,-163.58560111,0.000169,2]
[351149937,1738357833271,-1250.44555941,0.000169,2]
[351149939,1738357833280,-8713.65722164,0.000169,2]
[351149941,1738357833289,-717.01486,0.000169,2]
[351149943,1738357833298,-150.99,0.00016922,2]
[351149945,1738357833307,-774.29,0.00016941,2]
[351149947,1738357833316,-439.19,0.00016941,2]
[351149948,1738357833325,-848.51,0.0001699,3]
[351149950,1738357833334,-1410.49330647,0.00017,2]
[351149953,1738357833344,-984.0,0.00017,2]
[351149955,1738357833353,-438.33,0.00017,2]
[351149957,1738357833362,-300.0,0.00017,2]
[351149959,1738357833375,-297.88,0.00017,2]
[351149961,1738357833384,-15860.3,0.00017,2]
[351149963,1738357833394,-650.0,0.00017,2]
[351149965,1738357833404,-8574.25391314,0.00017,2]
[351149967,1738357833414,-469.0,0.00017,2]
[351149969,1738357833424,-1250.44555927,0.00017072,2]
[351149971,1738357833433,-431.18147599,0.00017073,2]
[351149973,1738357833443,-8713.65722157,0.00017109,2]
[351149975,1738357833452,-1250.44555927,0.00017245,2]
[351149977,1738357833461,-300.0,0.0001726,2]
[351149979,1738357833470,-983.86,0.0001726,2]
[351149981,1738357833480,-150.0,0.0001726,2]
[351149983,1738357833489,-771.15551727,0.0001726,2]
[351149988,1738357833540,-212.70448273,0.0001726,2]
[351149990,1738357833549,-983.86,0.0001726,2]
[351149992,1738357833558,-983.86,0.0001726,2]
[351149994,1738357833570,-298.42,0.0001726,2]
[351149996,1738357833580,-523.62669234,0.0001726,2]